fUSD/lending_fUSD_20240624
["ID","MTS","AMOUNT","RATE_DAILY","PERIOD"]
[330325043,1719258253084,-909.82,0.00044657,120]
[330325044,1719258253129,-829.07,0.00044657,120]
[330325045,1719258253173,-1703.05,0.00044657,120]
[330325046,1719258253217,-1358.16,0.00044657,120]
[330325047,1719258253258,-500.0,0.00044657,120]
[330325048,1719258253303,-522.33,0.00044657,120]
[330325049,1719258253345,-1570.64,0.00044657,120]
[330325050,1719258253388,-40546.37,0.00044657,120]
[330325051,1719258253429,-758.34,0.00044657,120]
[330325052,1719258253471,-5071.79,0.00044657,120]
[330325053,1719258253514,-500.0,0.00044657,120]
[330325054,1719258253558,-500.0,0.00044657,120]
[330325055,1719258253606,-8129.85,0.00044657,120]
[330325056,1719258253650,-1395.41,0.00044657,120]
[330325057,1719258253693,-959.95,0.00044657,120]
[330325058,1719258253736,-1168.41,0.00044657,120]
[330325059,1719258254066,-500.0,0.00044657,120]
[330325060,1719258254114,-150.0,0.00044704,120]
[330325061,1719258254156,-1000.0,0.00044749,30]
[330325062,1719258254194,-350000.0,0.000449,120]
[330325063,1719258254231,-861.0,0.000449,30]
[330325064,1719258254270,-1000.0,0.00044915,30]
[330325065,1719258254313,-200.0,0.00044931,100]
[330325066,1719258254356,-500.0,0.00044931,120]
[330325067,1719258254396,-662.41,0.00044931,120]
[330325068,1719258254433,-500.0,0.00044931,120]
[330325069,1719258254471,-453.2322363,0.00044931,120]
[330325070,1719258254511,-497.15184674,0.00044931,120]
[330325071,1719258254549,-500.0,0.00044931,120]
[330325072,1719258254589,-500.0,0.00044931,120]
[330325073,1719258254628,-500.0,0.00044931,120]
[330325074,1719258254671,-518.2116665,0.00044931,120]
[330325075,1719258254712,-500.0,0.00044931,120]
[330325076,1719258254751,-500.0,0.00044931,120]
[330325077,1719258254789,-500.0,0.00044931,120]
[330325078,1719258254825,-500.0,0.00044931,120]
[330325079,1719258254869,-500.0,0.00044931,120]
[330325080,1719258254909,-500.0,0.00044931,120]
[330325081,1719258254947,-613.86025634,0.00044931,120]
[330325082,1719258254985,-500.0,0.00044931,120]
[330325083,1719258255023,-703.65,0.00044931,120]
[330325084,1719258255060,-574.53,0.00044931,120]
[330325085,1719258255099,-517.71636954,0.00044931,120]
[330325086,1719258255139,-500.0,0.00044931,120]
[330325087,1719258255177,-500.0,0.00044931,120]
[330325088,1719258255214,-500.0,0.00044931,120]
[330325089,1719258255250,-500.0,0.00044931,120]
[330325090,1719258255288,-291.3926165,0.00044931,120]
[330325091,1719258255333,-500.0,0.00044931,120]
[330325092,1719258255373,-451.03047254,0.00044931,120]
[330325093,1719258255411,-500.0,0.00044931,120]
[330325094,1719258255449,-500.0,0.00044931,120]
[330325095,1719258255486,-500.0,0.00044931,120]
[330325096,1719258255525,-500.0,0.00044931,120]
[330325097,1719258255562,-500.0,0.00044931,120]
[330325098,1719258255602,-1500.0,0.00044931,120]
[330325099,1719258255641,-531.7,0.00044931,120]
[330325100,1719258255679,-557.88,0.00044931,120]
[330325101,1719258255719,-500.0,0.00044931,120]
[330325102,1719258255758,-500.0,0.00044931,120]
[330325103,1719258255797,-533.67,0.00044931,120]
[330325104,1719258255834,-783.5,0.00044931,120]
[330325105,1719258255871,-1253.81,0.00044931,120]
[330325106,1719258255908,-500.0,0.00044931,120]
[330325107,1719258255944,-500.0,0.00044931,120]
[330325108,1719258255981,-467.93071914,0.00044931,120]
[330325109,1719258256019,-1270.42,0.00044931,120]
[330325110,1719258256056,-900.35,0.00044931,120]
[330325111,1719258256093,-500.0,0.00044931,120]
[330325112,1719258256132,-500.0,0.00044931,120]
[330325113,1719258256168,-576.60970178,0.00044931,120]
[330325114,1719258256206,-500.0,0.00044931,120]
[330325115,1719258256245,-500.0,0.00044931,120]
[330325116,1719258256282,-500.0,0.00044931,120]
[330325117,1719258256320,-500.0,0.00044931,120]
[330325118,1719258256360,-1708.9,0.00044931,120]
[330325119,1719258256399,-500.0,0.00044931,120]
[330325120,1719258256439,-500.0,0.00044931,120]
[330325121,1719258256474,-500.0,0.00044931,120]
[330325122,1719258256512,-500.0,0.00044931,120]
[330325123,1719258256550,-500.0,0.00044931,120]
[330325124,1719258256589,-530.97186611,0.00044931,120]
[330325125,1719258256632,-500.0,0.00044931,120]
[330325126,1719258256675,-500.0,0.00044931,120]
[330325127,1719258256718,-500.0,0.00044931,120]
[330325128,1719258256760,-500.0,0.00044931,120]
[330325129,1719258256801,-504.89835446,0.00044931,120]
[330325130,1719258256844,-500.0,0.00044931,120]
[330325131,1719258256883,-500.0,0.00044931,120]
[330325132,1719258256927,-500.0,0.00044931,120]
[330325133,1719258256971,-1042.74,0.00044931,120]
[330325134,1719258257019,-500.0,0.00044931,120]
[330325135,1719258257059,-500.0,0.00044931,120]
[330325136,1719258257103,-500.0,0.00044931,120]
[330325137,1719258257145,-500.0,0.00044931,120]
[330325138,1719258257184,-523.19061925,0.00044931,120]
[330325139,1719258257223,-500.0,0.00044931,120]
[330325140,1719258257264,-1093.23,0.00044931,120]
[330325141,1719258257303,-500.0,0.00044931,120]
[330325142,1719258257345,-605.73,0.00044931,120]
[330325143,1719258257386,-500.0,0.00044931,120]
[330325144,1719258257425,-500.0,0.00044931,120]
[330325145,1719258257464,-500.0,0.00044931,120]
[330325146,1719258257504,-500.0,0.00044931,120]
[330325147,1719258257543,-150.0,0.00044931,120]
[330325148,1719258257581,-500.0,0.00044931,120]
[330325149,1719258257621,-785.26,0.00044931,120]
[330325150,1719258257662,-500.0,0.00044931,120]
[330325151,1719258257700,-500.0,0.00044931,120]
[330325152,1719258257741,-500.0,0.00044931,120]
[330325153,1719258257781,-500.0,0.00044931,120]
[330325154,1719258257822,-838.61,0.00044931,120]
[330325155,1719258257871,-500.0,0.00044931,120]
[330325156,1719258257914,-500.0,0.00044931,120]
[330325157,1719258257952,-500.0,0.00044931,120]
[330325158,1719258257989,-500.0,0.00044931,120]
[330325159,1719258258029,-500.0,0.00044931,120]
[330325160,1719258258068,-500.0,0.00044931,120]
[330325161,1719258258108,-500.0,0.00044931,120]
[330325162,1719258258150,-500.0,0.00044931,120]
[330325163,1719258258368,-500.0,0.00044931,120]
[330325164,1719258258407,-351.97,0.00044931,120]
[330325165,1719258258446,-500.0,0.00044931,120]
[330325166,1719258258484,-500.0,0.00044931,120]
[330325167,1719258258524,-500.0,0.00044931,120]
[330325168,1719258258563,-500.0,0.00044931,120]
[330325169,1719258258602,-500.0,0.00044931,120]
[330325170,1719258258644,-500.0,0.00044931,120]
[330325171,1719258258685,-500.0,0.00044931,120]
[330325172,1719258258724,-500.0,0.00044931,120]
[330325173,1719258258762,-500.0,0.00044931,120]
[330325174,1719258258800,-594.12,0.00044931,120]
[330325175,1719258258840,-500.0,0.00044931,120]
[330325176,1719258258876,-500.0,0.00044931,120]
[330325177,1719258258914,-655.63,0.00044931,120]
[330325178,1719258258952,-500.0,0.00044931,120]
[330325179,1719258258991,-849.72,0.00044931,120]
[330325180,1719258259032,-523.24768,0.00044931,120]
[330325181,1719258259070,-500.0,0.00044931,120]
[330325182,1719258259114,-500.0,0.00044931,120]
[330325183,1719258259161,-500.0,0.00044931,120]
[330325184,1719258259205,-500.0,0.00044931,120]
[330325185,1719258259246,-500.0,0.00044931,120]
[330325186,1719258259286,-529.21,0.00044931,120]
[330325187,1719258259328,-500.0,0.00044931,120]
[330325188,1719258259372,-500.0,0.00044931,120]
[330325189,1719258259411,-567.01,0.00044931,120]
[330325190,1719258259454,-500.0,0.00044931,120]
[330325191,1719258259498,-500.0,0.00044931,120]
[330325192,1719258259538,-500.0,0.00044931,120]
[330325193,1719258259582,-500.0,0.00044931,120]
[330325194,1719258259634,-500.0,0.00044931,120]
[330325195,1719258259677,-500.0,0.00044931,120]
[330325196,1719258259718,-500.0,0.00044931,120]
[330325197,1719258259766,-500.0,0.00044931,120]
[330325198,1719258259810,-500.0,0.00044931,120]
[330325199,1719258259856,-500.0,0.00044931,120]
[330325200,1719258259902,-500.0,0.00044931,120]
[330325201,1719258259942,-500.0,0.00044931,120]
[330325202,1719258259986,-500.0,0.00044931,120]
[330325203,1719258260031,-246.10103286,0.00044931,120]
[330325204,1719258260070,-500.0,0.00044931,120]
[330325205,1719258260111,-500.0,0.00044931,120]
[330325206,1719258260147,-500.0,0.00044931,120]
[330325207,1719258260186,-500.0,0.00044931,120]
[330325208,1719258260226,-500.0,0.00044931,120]
[330325209,1719258260266,-500.0,0.00044931,120]
[330325210,1719258260305,-2788.04,0.00044931,120]
[330325211,1719258260345,-500.0,0.00044931,120]
[330325212,1719258260383,-500.0,0.00044931,120]
[330325213,1719258260423,-500.0,0.00044931,120]
[330325214,1719258260463,-500.0,0.00044931,120]
[330325215,1719258260509,-500.0,0.00044931,120]
[330325216,1719258260550,-1166.09,0.00044931,120]
[330325217,1719258260591,-500.0,0.00044931,120]
[330325218,1719258260632,-500.0,0.00044931,120]
[330325219,1719258260675,-500.0,0.00044931,120]
[330325220,1719258260719,-1262.68,0.00044931,120]
[330325221,1719258260759,-500.0,0.00044931,120]
[330325222,1719258260799,-500.0,0.00044931,120]
[330325223,1719258260838,-500.0,0.00044931,120]
[330325224,1719258260876,-500.0,0.00044931,120]
[330325225,1719258260913,-790.48,0.00044931,120]
[330325226,1719258260950,-500.0,0.00044931,120]
[330325227,1719258260988,-500.0,0.00044931,120]
[330325228,1719258261026,-500.0,0.00044931,120]
[330325229,1719258261063,-500.0,0.00044931,120]
[330325230,1719258261101,-500.0,0.00044931,120]
[330325231,1719258261140,-687.92,0.00044931,120]
[330325232,1719258261178,-500.0,0.00044931,120]
[330325233,1719258261215,-500.0,0.00044931,120]
[330325234,1719258261255,-500.0,0.00044931,120]
[330325235,1719258261292,-766.33,0.00044931,120]
[330325236,1719258261329,-500.0,0.00044931,120]
[330325237,1719258261366,-500.0,0.00044931,120]
[330325238,1719258261405,-765.44,0.00044931,120]
[330325239,1719258261445,-500.0,0.00044931,120]
[330325240,1719258261486,-500.0,0.00044931,120]
[330325241,1719258261526,-1969.8,0.00044931,120]
[330325242,1719258261566,-500.0,0.00044931,120]
[330325243,1719258261607,-500.0,0.00044931,120]
[330325244,1719258261648,-500.0,0.00044931,120]
[330325245,1719258261689,-1694.12,0.00044931,120]
[330325246,1719258261729,-824.95,0.00044931,120]
[330325247,1719258261768,-553.17,0.00044931,120]
[330325248,1719258261806,-500.0,0.00044931,120]
[330325249,1719258261844,-500.0,0.00044931,120]
[330325250,1719258261884,-1172.25,0.00044931,120]
[330325251,1719258261922,-571.93,0.00044931,120]
[330325252,1719258261962,-500.0,0.00044931,120]
[330325253,1719258262000,-675.94,0.00044931,120]
[330325254,1719258262039,-819.57,0.00044931,120]
[330325255,1719258262081,-1195.67,0.00044931,120]
[330325256,1719258262121,-500.0,0.00044931,120]
[330325257,1719258262162,-500.0,0.00044931,120]
[330325258,1719258262201,-667.67,0.00044931,120]
[330325259,1719258262240,-804.5,0.00044931,120]
[330325260,1719258262279,-1165.11,0.00044931,120]
[330325261,1719258262319,-500.0,0.00044931,120]
[330325262,1719258262359,-500.0,0.00044931,120]
[330325263,1719258262398,-500.0,0.00044931,120]
[330325264,1719258262437,-1099.82,0.00044931,120]
[330325265,1719258262474,-500.0,0.00044931,120]
[330325266,1719258262512,-816.17,0.00044931,120]
[330325267,1719258262721,-500.0,0.00044931,120]
[330325268,1719258262762,-500.0,0.00044931,120]
[330325269,1719258262801,-500.0,0.00044931,120]
[330325270,1719258262841,-500.0,0.00044931,120]
[330325271,1719258262882,-627.61,0.00044931,120]
[330325272,1719258262921,-500.0,0.00044931,120]
[330325273,1719258262958,-500.0,0.00044931,120]
[330325274,1719258262997,-1399.72,0.00044931,120]
[330325275,1719258263037,-1021.58,0.00044931,120]
[330325276,1719258263076,-1516.79,0.00044931,120]
[330325277,1719258263114,-500.0,0.00044931,120]
[330325278,1719258263156,-500.0,0.00044931,120]
[330325279,1719258263194,-466.43665354,0.00044931,120]
[330325280,1719258263232,-603.84802668,0.00044931,120]
[330325281,1719258263272,-1038.38,0.00044931,120]
[330325282,1719258263312,-1562.7,0.00044931,120]
[330325283,1719258263350,-500.0,0.00044931,120]
[330325284,1719258263387,-500.0,0.00044931,120]
[330325285,1719258263427,-500.0,0.00044931,120]
[330325286,1719258263468,-2386.52,0.00044931,120]
[330325287,1719258263510,-500.0,0.00044931,120]
[330325288,1719258263550,-651.41,0.00044931,120]
[330325289,1719258263590,-531.38,0.00044931,120]
[330325290,1719258263630,-1212.63,0.00044931,120]
[330325291,1719258263674,-500.0,0.00044931,120]
[330325292,1719258263717,-500.0,0.00044931,120]
[330325293,1719258263756,-500.0,0.00044931,120]
[330325294,1719258263796,-500.0,0.00044931,120]
[330325295,1719258263834,-508.43,0.00044931,120]
[330325296,1719258263875,-500.0,0.00044931,120]
[330325297,1719258263914,-932.91,0.00044931,120]
[330325298,1719258263953,-500.0,0.00044931,120]
[330325299,1719258263994,-500.0,0.00044931,120]
[330325300,1719258264033,-500.0,0.00044931,120]
[330325301,1719258264073,-500.0,0.00044931,120]
[330325302,1719258264117,-500.0,0.00044931,120]
[330325303,1719258264158,-500.0,0.00044931,120]
[330325304,1719258264197,-506.19,0.00044931,120]
[330325305,1719258264237,-844.64,0.00044931,120]
[330325306,1719258264275,-660.39,0.00044931,120]
[330325307,1719258264315,-500.83,0.00044931,120]
[330325308,1719258264357,-682.01,0.00044931,120]
[330325309,1719258264400,-2912.3,0.00044931,120]
[330325310,1719258264442,-2243.25,0.00044931,120]
[330325311,1719258264483,-763.57,0.00044931,120]
[330325312,1719258264523,-500.0,0.00044931,120]
[330325313,1719258264564,-500.0,0.00044931,120]
[330325314,1719258264603,-1080.37,0.00044931,120]
[330325315,1719258264646,-500.0,0.00044931,120]
[330325316,1719258264686,-775.89,0.00044931,120]
[330325317,1719258264725,-579.59,0.00044931,120]
[330325318,1719258264765,-712.8,0.00044931,120]
[330325319,1719258264805,-500.0,0.00044931,120]
[330325320,1719258264844,-500.0,0.00044931,120]
[330325321,1719258264888,-500.0,0.00044931,120]
[330325322,1719258264931,-536.01621977,0.00044931,120]
[330325323,1719258264969,-2552.8,0.00044931,120]
[330325324,1719258265008,-283.12777027,0.00044931,120]
[330325325,1719258265048,-500.0,0.00044931,120]
[330325326,1719258265088,-500.0,0.00044931,120]
[330325327,1719258265129,-709.83,0.00044931,120]
[330325328,1719258265169,-500.0,0.00044931,120]
[330325329,1719258265208,-892.32,0.00044931,120]
[330325330,1719258265247,-270.71,0.00044931,120]
[330325331,1719258265285,-816.66,0.00044931,120]
[330325332,1719258265325,-500.0,0.00044931,120]
[330325333,1719258265366,-2290.5,0.00044931,120]
[330325334,1719258265404,-500.0,0.00044931,120]
[330325335,1719258265445,-639.14,0.00044931,120]
[330325336,1719258265484,-500.0,0.00044931,120]
[330325337,1719258265523,-767.44,0.00044931,120]
[330325338,1719258265565,-500.0,0.00044931,120]
[330325339,1719258265606,-847.35,0.00044931,120]
[330325340,1719258265649,-500.0,0.00044931,120]
[330325341,1719258265688,-2500.0,0.00044931,30]
[330325342,1719258265727,-500.0,0.00044931,120]
[330325343,1719258265766,-2500.0,0.00044931,30]
[330325344,1719258265804,-500.0,0.00044931,120]
[330325345,1719258265841,-2500.0,0.00044931,30]
[330325346,1719258265881,-1992.92,0.00044931,120]
[330325347,1719258265920,-2500.0,0.00044931,30]
[330325348,1719258265958,-2500.0,0.00044931,30]
[330325349,1719258265995,-2500.0,0.00044931,30]
[330325350,1719258266035,-2500.0,0.00044931,30]
[330325351,1719258266073,-2500.0,0.00044931,30]
[330325352,1719258266113,-2500.0,0.00044931,30]
[330325353,1719258266155,-2500.0,0.00044931,30]
[330325354,1719258266194,-2500.0,0.00044931,30]
[330325355,1719258266230,-2500.0,0.00044931,30]
[330325356,1719258266269,-2500.0,0.00044931,30]
[330325357,1719258266308,-2500.0,0.00044931,30]
[330325358,1719258266353,-2500.0,0.00044931,30]
[330325359,1719258266392,-500.0,0.00044931,120]
[330325360,1719258266432,-2500.0,0.00044931,30]
[330325361,1719258266472,-2500.0,0.00044931,30]
[330325362,1719258266512,-500.0,0.00044931,120]
[330325363,1719258266551,-201.98763429,0.00044931,30]
[330325364,1719258266590,-500.0,0.00044931,120]
[330325365,1719258266632,-500.0,0.00044931,120]
[330325366,1719258266672,-500.0,0.00044931,120]
[330325367,1719258266713,-500.0,0.00044931,120]
[330325368,1719258266754,-500.0,0.00044931,120]
[330325369,1719258266800,-611.14,0.00044931,120]
[330325370,1719258266845,-500.0,0.00044931,120]
[330325371,1719258267053,-510.53,0.00044931,120]
[330325372,1719258267096,-995.0,0.00044931,120]
[330325373,1719258267137,-1398.2,0.00044931,120]
[330325374,1719258267176,-623.96,0.00044931,120]
[330325375,1719258267215,-515.43,0.00044931,120]
[330325376,1719258267254,-811.57,0.00044931,120]
[330325377,1719258267294,-491.42,0.00044931,120]
[330325378,1719258267336,-500.0,0.00044931,120]
[330325379,1719258267376,-187.33,0.00044931,120]
[330325380,1719258267413,-500.0,0.00044931,120]
[330325381,1719258267452,-500.0,0.00044931,120]
[330325382,1719258267492,-500.0,0.00044931,120]
[330325383,1719258267530,-500.0,0.00044931,120]
[330325384,1719258267570,-500.0,0.00044931,120]
[330325385,1719258267612,-669.18,0.00044931,120]
[330325386,1719258267651,-500.0,0.00044931,120]
[330325387,1719258267690,-500.0,0.00044931,120]
[330325388,1719258267729,-500.0,0.00044931,120]
[330325389,1719258267769,-500.0,0.00044931,120]
[330325390,1719258267807,-500.0,0.00044931,120]
[330325391,1719258267845,-500.0,0.00044931,120]
[330325392,1719258267884,-500.0,0.00044931,120]
[330325393,1719258267923,-500.0,0.00044931,120]
[330325394,1719258267962,-500.0,0.00044931,120]
[330325395,1719258267999,-500.0,0.00044931,120]
[330325396,1719258268040,-500.0,0.00044931,120]
[330325397,1719258268082,-500.0,0.00044931,120]
[330325398,1719258268122,-500.0,0.00044931,120]
[330325399,1719258268162,-500.0,0.00044931,120]
[330325400,1719258268204,-639.21,0.00044931,120]
[330325401,1719258268242,-511.29,0.00044931,120]
[330325402,1719258268282,-1932.92,0.00044931,120]
[330325403,1719258268322,-542.44,0.00044931,120]
[330325404,1719258268363,-603.28,0.00044931,120]
[330325405,1719258268403,-500.0,0.00044931,120]
[330325406,1719258268445,-500.0,0.00044931,120]
[330325407,1719258268485,-500.0,0.00044931,120]
[330325408,1719258268525,-500.0,0.00044931,120]
[330325409,1719258268565,-436.88,0.00044931,120]
[330325410,1719258268608,-745.89,0.00044931,120]
[330325411,1719258268647,-500.0,0.00044931,120]
[330325412,1719258268689,-500.0,0.00044931,120]
[330325413,1719258268729,-990.35,0.00044931,120]
[330325414,1719258268769,-500.0,0.00044931,120]
[330325415,1719258268810,-500.0,0.00044931,120]
[330325416,1719258268852,-500.0,0.00044931,120]
[330325417,1719258268891,-500.0,0.00044931,120]
[330325418,1719258268932,-500.0,0.00044931,120]
[330325419,1719258268972,-500.0,0.00044931,120]
[330325420,1719258269013,-722.46,0.00044931,120]
[330325421,1719258269053,-1290.82,0.00044931,120]
[330325422,1719258269094,-499.24499403,0.00044931,120]
[330325423,1719258269136,-1160.71,0.00044931,120]
[330325424,1719258269184,-500.0,0.00044931,120]
[330325425,1719258269227,-1238.72,0.00044931,120]
[330325426,1719258269267,-500.0,0.00044931,120]
[330325427,1719258269308,-500.0,0.00044931,120]
[330325428,1719258269350,-429.56894367,0.00044931,120]
[330325429,1719258269389,-501.29,0.00044931,120]
[330325430,1719258269431,-176.23843083,0.00044931,120]
[330325431,1719258269468,-500.0,0.00044931,120]
[330325432,1719258269509,-500.0,0.00044931,120]
[330325433,1719258269548,-150.22,0.00044931,120]
[330325434,1719258269591,-660.18,0.00044931,120]
[330325435,1719258269629,-500.0,0.00044931,120]
[330325436,1719258269675,-500.0,0.00044931,120]
[330325437,1719258269719,-318.25,0.00044931,120]
[330325438,1719258269759,-1152.05,0.00044931,120]
[330325439,1719258269798,-537.71,0.00044931,120]
[330325440,1719258269843,-909.58,0.00044931,120]
[330325441,1719258269883,-194.05,0.00044931,120]
[330325442,1719258269923,-500.0,0.00044931,120]
[330325443,1719258269967,-1089.47,0.00044931,120]
[330325444,1719258270005,-562.13,0.00044931,120]
[330325445,1719258270045,-500.0,0.00044931,120]
[330325446,1719258270084,-500.0,0.00044931,120]
[330325447,1719258270128,-460.33719651,0.00044931,120]
[330325448,1719258270169,-500.0,0.00044931,120]
[330325449,1719258270207,-594.01,0.00044931,120]
[330325450,1719258270247,-596.12,0.00044931,30]
[330325451,1719258270285,-532.81,0.00044931,120]
[330325452,1719258270326,-500.0,0.00044931,120]
[330325453,1719258270368,-500.0,0.00044931,120]
[330325454,1719258270410,-2670.65,0.00044931,120]
[330325455,1719258270452,-2835.37,0.00044931,120]
[330325456,1719258270492,-500.0,0.00044931,120]
[330325457,1719258270537,-500.0,0.00044931,120]
[330325458,1719258270583,-541.9,0.00044931,120]
[330325459,1719258270633,-500.0,0.00044931,120]
[330325460,1719258270679,-500.0,0.00044931,120]
[330325461,1719258270720,-1496.26,0.00044931,120]
[330325462,1719258270758,-833.92,0.00044931,120]
[330325463,1719258270796,-500.0,0.00044931,120]
[330325464,1719258270837,-1709.42,0.00044931,120]
[330325465,1719258270876,-1353.45,0.00044931,120]
[330325466,1719258270914,-599.03,0.00044931,120]
[330325467,1719258270954,-1063.0,0.00044931,120]
[330325468,1719258270992,-419.14929548,0.00044931,120]
[330325469,1719258271031,-500.0,0.00044931,90]
[330325470,1719258271066,-150.48603389,0.00044931,120]
[330325471,1719258271105,-500.0,0.00044931,120]
[330325472,1719258271144,-1406.68,0.00044931,120]
[330325473,1719258271182,-3948.04,0.00044931,120]
[330325474,1719258271220,-500.0,0.00044931,120]
[330325475,1719258271420,-800.27,0.00044931,120]
[330325476,1719258271464,-500.0,0.00044931,120]
[330325477,1719258271511,-500.0,0.00044931,120]
[330325478,1719258271556,-179.09,0.00044931,120]
[330325479,1719258271601,-1227.33,0.00044931,120]
[330325480,1719258271645,-8263.86,0.00044931,120]
[330325481,1719258271689,-1743.76,0.00044931,120]
[330325482,1719258271729,-1127.16,0.00044931,120]
[330325483,1719258271770,-578.4,0.00044931,120]
[330325484,1719258271811,-500.0,0.00044931,120]
[330325485,1719258271852,-500.0,0.00044931,120]
[330325486,1719258271891,-2016.78,0.00044931,120]
[330325487,1719258271931,-1126.39,0.00044931,120]
[330325488,1719258271973,-609.53,0.00044931,120]
[330325489,1719258272014,-1708.98,0.00044931,120]
[330325490,1719258272056,-500.0,0.00044931,120]
[330325491,1719258272097,-1099.7,0.00044931,120]
[330325492,1719258272140,-1426.31,0.00044931,120]
[330325493,1719258272181,-500.0,0.00044931,120]
[330325494,1719258272224,-1323.01,0.00044931,120]
[330325495,1719258272266,-1770.99,0.00044931,120]
[330325496,1719258272307,-500.0,0.00044931,120]
[330325497,1719258272349,-886.44,0.00044931,120]
[330325498,1719258272389,-500.0,0.00044931,120]
[330325499,1719258272432,-500.0,0.00044931,120]
[330325500,1719258272472,-604.85705698,0.00044931,120]
[330325501,1719258272514,-2248.85,0.00044931,120]
[330325502,1719258272554,-500.0,0.00044931,120]
[330325503,1719258272598,-1193.42,0.00044931,120]
[330325504,1719258272646,-500.0,0.00044931,120]
[330325505,1719258272692,-2029.01,0.00044931,120]
[330325506,1719258272729,-1627.12,0.00044931,120]
[330325507,1719258272769,-994.14,0.00044931,120]
[330325508,1719258272808,-500.0,0.00044931,120]
[330325509,1719258272848,-500.0,0.00044931,120]
[330325510,1719258272888,-1443.36,0.00044931,120]
[330325511,1719258272928,-500.0,0.00044931,120]
[330325512,1719258272966,-609.82,0.00044931,120]
[330325513,1719258273008,-500.0,0.00044931,120]
[330325514,1719258273053,-500.0,0.00044931,90]
[330325515,1719258273098,-500.0,0.00044931,120]
[330325516,1719258273141,-861.71,0.00044931,120]
[330325517,1719258273182,-1411.55,0.00044931,120]
[330325518,1719258273223,-450.15779821,0.00044931,120]
[330325519,1719258273266,-500.0,0.00044931,120]
[330325520,1719258273305,-678.0,0.00044931,120]
[330325521,1719258273351,-959.44,0.00044931,120]
[330325522,1719258273394,-14849.4,0.00044931,120]
[330325523,1719258273436,-500.0,0.00044931,120]
[330325524,1719258273478,-500.0,0.00044931,120]
[330325525,1719258273520,-1025.11,0.00044931,120]
[330325526,1719258273561,-3657.05,0.00044931,120]
[330325527,1719258273603,-643.67,0.00044931,120]
[330325528,1719258273646,-500.0,0.00044931,120]
[330325529,1719258273686,-500.0,0.00044931,120]
[330325530,1719258273726,-921.25,0.00044931,120]
[330325531,1719258273768,-500.0,0.00044931,120]
[330325532,1719258273808,-500.0,0.00044931,120]
[330325533,1719258273848,-500.0,0.00044931,120]
[330325534,1719258273889,-500.0,0.00044931,120]
[330325535,1719258273930,-1522.85,0.00044931,120]
[330325536,1719258273968,-575.37,0.00044931,120]
[330325537,1719258274007,-566.76,0.00044931,120]
[330325538,1719258274049,-500.0,0.00044931,120]
[330325539,1719258274091,-500.0,0.00044931,120]
[330325540,1719258274134,-500.0,0.00044931,120]
[330325541,1719258274174,-909.24,0.00044931,120]
[330325542,1719258274213,-757.63,0.00044931,120]